fUST/lending_fUST_20240113
["ID","MTS","AMOUNT","RATE_DAILY","PERIOD"]
[311423003,1705088595613,-155.06977247,0.00027,2]
[311423004,1705088595639,-153.0,0.00027,2]
[311423005,1705088595664,-153.0,0.00027,2]
[311423006,1705088595688,-460.75992736,0.00027199,2]
[311423007,1705088595713,-153.0,0.000272,2]
[311423008,1705088595737,-173.67174704,0.000272,3]
[311423009,1705088595761,-9101.57193357,0.000273,4]
[311423010,1705088595785,-153.0,0.000273,2]
[311423012,1705088595975,-153.0,0.000273,2]
[311423013,1705088595998,-2018.91,0.00027301,3]
[311423014,1705088596020,-3457.11,0.00027301,3]
[311423015,1705088596042,-2880.93,0.00027301,3]
[311423016,1705088596065,-2400.77,0.00027301,3]
[311423017,1705088596087,-878.34013724,0.00027309,2]
[311423018,1705088596108,-259.23759939,0.0002731,2]
[311423019,1705088596130,-500.0,0.0002731,2]
[311423021,1705088596153,-523.46730843,0.0002731,2]
[311423022,1705088596174,-500.0,0.0002731,2]
[311423023,1705088596195,-384.79265814,0.0002731,2]
[311423024,1705088596217,-500.0,0.0002731,2]
[311423025,1705088596237,-500.0,0.0002731,2]
[311423026,1705088596259,-500.0,0.0002731,2]
[311423027,1705088596280,-500.0,0.0002731,2]
[311423028,1705088596302,-500.0,0.0002731,2]
[311423029,1705088596325,-500.0,0.0002731,2]
[311423030,1705088596346,-500.0,0.0002731,2]
[311423031,1705088596368,-500.0,0.0002731,2]
[311423032,1705088596393,-500.0,0.0002731,2]
[311423033,1705088596414,-525.97323272,0.0002731,2]
[311423034,1705088596435,-500.0,0.0002731,2]
[311423035,1705088596456,-500.0,0.0002731,2]
[311423037,1705088596477,-500.0,0.0002731,2]
[311423038,1705088596499,-503.73609041,0.0002731,2]
[311423039,1705088596520,-500.0,0.0002731,2]
[311423040,1705088596541,-500.0,0.0002731,2]
[311423041,1705088596566,-500.0,0.0002731,2]
[311423042,1705088596588,-500.0,0.0002731,2]
[311423043,1705088596611,-500.0,0.0002731,2]
[311423044,1705088596634,-500.0,0.0002731,2]
[311423045,1705088596655,-329.27294652,0.0002731,2]
[311423046,1705088596677,-500.0,0.0002731,2]
[311423047,1705088596699,-500.0,0.0002731,2]
[311423048,1705088596720,-168.54559736,0.00027311,2]
[311423049,1705088596740,-521.0,0.00027311,2]
[311423050,1705088596760,-1000.0,0.00027311,5]
[311423051,1705088596781,-366.4580534,0.00027311,2]
[311423052,1705088596802,-2918.68572533,0.00027311,2]
[311423053,1705088596825,-6794.08380299,0.00027311,2]
[311423054,1705088596846,-2079.63666476,0.00027311,2]
[311423055,1705088596866,-3314.65607422,0.00027311,2]
[311423056,1705088596888,-213.06230153,0.00027311,2]
[311423057,1705088596909,-1273.97108052,0.00027311,2]
[311423058,1705088596934,-3832.65564611,0.00027311,2]
[311423059,1705088596956,-1000.0,0.00027311,2]
[311423060,1705088596977,-500.0,0.00027311,2]
[311423061,1705088596998,-500.0,0.00027311,2]
[311423062,1705088597019,-500.0,0.00027311,2]
[311423063,1705088597041,-161.8286803,0.00027311,2]
[311423064,1705088597063,-500.0,0.00027311,2]
[311423065,1705088597085,-500.0,0.00027311,2]
[311423066,1705088597106,-506.52051017,0.00027311,2]
[311423067,1705088597129,-500.0,0.00027311,2]
[311423068,1705088597151,-500.0,0.00027311,2]
[311423069,1705088597173,-500.0,0.00027311,2]
[311423070,1705088597196,-500.0,0.00027311,2]
[311423071,1705088597217,-245.30792768,0.00027311,2]
[311423072,1705088597239,-500.0,0.00027311,2]
[311423073,1705088597261,-626.26495276,0.00027311,2]
[311423074,1705088597283,-500.0,0.00027311,2]
[311423075,1705088597305,-500.0,0.00027311,2]
[311423076,1705088597327,-157.66665322,0.00027311,2]
[311423077,1705088597349,-500.0,0.00027311,2]
[311423078,1705088597375,-1438.58,0.00027311,2]
[311423079,1705088597397,-500.0,0.00027311,2]
[311423080,1705088597420,-1280.41,0.00027311,2]
[311423081,1705088597441,-500.0,0.00027311,2]
[311423082,1705088597463,-500.0,0.00027311,2]
[311423083,1705088597485,-500.0,0.00027311,2]
[311423084,1705088597507,-467.60220917,0.00027311,2]
[311423085,1705088597529,-500.0,0.00027311,2]
[311423086,1705088597550,-500.0,0.00027311,2]
[311423087,1705088597574,-500.0,0.00027311,2]
[311423088,1705088597595,-833.33,0.00027311,2]
[311423089,1705088597618,-500.0,0.00027311,2]
[311423090,1705088597640,-500.0,0.00027312,2]
[311423091,1705088597662,-500.0,0.00027312,2]
[311423092,1705088597684,-500.0,0.00027312,2]
[311423093,1705088597707,-500.0,0.00027312,2]
[311423094,1705088597738,-1236.05188715,0.00027313,2]
[311423095,1705088597767,-18968.21026428,0.00027313,2]
[311423096,1705088597791,-5000.0,0.00027313,2]
[311423097,1705088597818,-195.8914115,0.00027313,2]
[311423098,1705088597844,-5000.0,0.00027313,2]
[311423099,1705088597868,-5069.45235618,0.00027313,2]
[311423100,1705088597891,-500.0,0.00027397,2]
[311423101,1705088597914,-500.0,0.00027397,2]
[311423102,1705088597936,-4917.8600325,0.000274,2]
[311423103,1705088597959,-200.0,0.00027499,15]
[311423104,1705088597982,-200.0,0.000275,4]
[311423105,1705088598004,-155.0,0.000275,2]
[311423107,1705088598027,-500.0,0.00027534,2]
[311423108,1705088598049,-500.0,0.00027584,2]
[311423110,1705088598075,-500.0,0.00027584,2]
[311423111,1705088598098,-500.0,0.00027584,2]
[311423112,1705088598121,-500.0,0.00027584,2]
[311423113,1705088598144,-199.45444271,0.00027585,2]
[311423114,1705088598166,-500.0,0.00027585,2]
[311423115,1705088598189,-500.0,0.00027585,2]
[311423116,1705088598213,-1438.58,0.00027585,2]
[311423117,1705088598236,-500.0,0.00027585,2]
[311423118,1705088598259,-1280.41,0.00027585,2]
[311423119,1705088598282,-500.0,0.00027585,2]
[311423120,1705088598310,-500.0,0.00027585,2]
[311423121,1705088598334,-500.0,0.00027585,2]
[311423122,1705088598358,-500.0,0.00027585,2]
[311423123,1705088598383,-833.33,0.00027585,2]
[311423124,1705088598406,-500.0,0.00027585,2]
[311423125,1705088598430,-500.0,0.00027585,2]
[311423126,1705088598453,-500.0,0.00027586,2]
[311423127,1705088598478,-500.0,0.00027586,2]
[311423128,1705088598501,-500.0,0.00027586,2]
[311423143,1705088606198,1184.19984249,0.00024578,2]
[311423382,1705089033750,-170.5489181,0.00024741,2]
[311423383,1705089033761,-150.0,0.00024742,2]
[311423384,1705089033771,-150.0,0.00025,2]
[311423385,1705089033781,-2093.76186828,0.00026998,2]
[311423386,1705089033791,-460.75992736,0.00027299,2]
[311423387,1705089033801,-500.0,0.00027299,2]
[311423388,1705089033810,-3269.01308925,0.000273,4]
[311423450,1705089037974,-687.86118875,0.000257,2]
[311423452,1705089037983,-1836.08773377,0.000273,4]
[311423454,1705089037994,-2818.28320669,0.000273,4]
[311423457,1705089038007,-795.25274607,0.000273,4]
[311423459,1705089038018,-382.93515779,0.000273,4]
[311423461,1705089038028,-207.83,0.0002731,2]
[311423462,1705089038037,-500.0,0.0002731,2]
[311423463,1705089038046,-1378.91,0.0002731,2]
[311423464,1705089038056,-500.0,0.0002731,2]
[311423465,1705089038065,-500.0,0.0002731,2]
[311423466,1705089038075,-462.88263616,0.0002731,2]
[311423467,1705089038084,-500.0,0.0002731,2]
[311423468,1705089038094,-431.01345031,0.00027311,2]
[311423469,1705089038105,-68.98654969,0.00027311,2]
[311423470,1705089038115,-599.44,0.00027311,2]
[311423471,1705089038124,-500.0,0.00027311,2]
[311423472,1705089038134,-500.0,0.00027311,2]
[311423473,1705089038144,-500.0,0.00027311,2]
[311423474,1705089038153,-500.0,0.00027311,2]
[311423475,1705089038163,-500.0,0.00027311,2]
[311423476,1705089038172,-502.00356295,0.00027311,2]
[311423477,1705089038181,-500.0,0.00027311,2]
[311423478,1705089038191,-500.0,0.00027311,2]
[311423479,1705089038200,-500.0,0.00027311,2]
[311423480,1705089038209,-500.0,0.00027311,2]
[311423481,1705089038218,-500.0,0.00027311,2]
[311423482,1705089038228,-500.0,0.00027311,2]
[311423483,1705089038238,-579.01830516,0.00027311,2]
[311423484,1705089038249,-622.31394564,0.00027311,2]
[311423485,1705089038258,-500.0,0.00027311,2]
[311423487,1705089038267,-500.0,0.00027311,2]
[311423489,1705089038277,-500.0,0.00027311,2]
[311423491,1705089038287,-500.0,0.00027311,2]
[311423493,1705089038297,-500.0,0.00027311,2]
[311423495,1705089038306,-500.0,0.00027311,2]
[311423497,1705089038315,-500.0,0.00027311,2]
[311423499,1705089038324,-500.0,0.00027311,2]
[311423501,1705089038333,-500.0,0.00027311,2]
[311423503,1705089038342,-500.0,0.00027311,2]
[311423505,1705089038351,-500.0,0.00027397,2]
[311423507,1705089038360,-155.0,0.000274,2]
[311423509,1705089038369,-500.0,0.00027534,2]
[311423511,1705089038379,-500.0,0.00027583,2]
[311423513,1705089038389,-500.0,0.00027584,2]
[311423515,1705089038399,-1378.91,0.00027584,2]
[311423517,1705089038409,-500.0,0.00027584,2]
[311423519,1705089038420,-500.0,0.00027584,2]
[311423521,1705089038430,-500.0,0.00027584,2]
[311423523,1705089038439,-500.0,0.00027585,2]
[311423525,1705089038449,-500.0,0.00027585,2]
[311423527,1705089038458,-500.0,0.00027585,2]
[311423529,1705089038468,-500.0,0.00027585,2]
[311423531,1705089038479,-500.0,0.00027585,2]
[311423533,1705089038489,-500.0,0.00027585,2]
[311423535,1705089038500,-500.0,0.00027585,2]
[311423537,1705089038509,-302.28035919,0.00027585,2]
[311423539,1705089038518,-500.0,0.00027585,2]
[311423541,1705089038527,-436.51894821,0.00027586,2]
[311423543,1705089038537,-3314.65607422,0.00027586,2]
[311423545,1705089038547,-2620.63287405,0.00027586,2]
[311423547,1705089038557,-500.0,0.00027671,2]
[311423549,1705089038567,-461.0,0.000278,2]
[311423551,1705089038577,-500.0,0.00027808,2]
[311423553,1705089038587,-500.0,0.00027858,2]
[311423555,1705089038596,-1378.91,0.00027858,2]
[311423557,1705089038608,-500.0,0.00027858,2]
[311423559,1705089038617,-500.0,0.00027858,2]
[311423560,1705089038629,-833.33,0.00027859,2]
[311423562,1705089038639,-623.70672051,0.00027859,2]
[311423564,1705089038650,-626.81176029,0.00027859,2]
[311423566,1705089038663,-500.0,0.00027859,2]
[311423568,1705089038673,-500.0,0.00027859,2]
[311423570,1705089038684,-636.18,0.00027859,2]
[311423572,1705089038696,-150.0,0.000279,2]
[311423575,1705089038706,-261.04615334,0.00027945,2]
[311423577,1705089038717,-500.0,0.00027945,2]
[311423578,1705089038727,-603.79080011,0.0002799,3]
[311423805,1705089040806,-1396.85919989,0.0002799,3]
[311423806,1705089040815,-620.00147124,0.00027996,2]
[311423807,1705089040825,-4917.8600325,0.00027998,2]
[311423808,1705089040833,-1572.48618971,0.00027998,2]
[311423809,1705089040842,-500.0,0.00027999,2]
[311423810,1705089040851,-5000.0,0.00028,2]
[311423811,1705089040861,-8469.22115407,0.00028,2]
[311423812,1705089040872,-415.48758779,0.00028,2]
[311423813,1705089040882,-1902.764197,0.00028,2]
[311423814,1705089040891,-3848.88859893,0.00028,3]
[311423815,1705089040900,-179.013844,0.00028012,2]
[311423816,1705089040910,-179.774384,0.00028012,2]
[311423817,1705089040921,-172.432805,0.00028012,2]
[311423818,1705089040931,-194.27209474,0.00028024,2]
[311423819,1705089040941,-500.0,0.00028082,2]
[311423820,1705089040952,-194.27209474,0.00028085,2]
[311423821,1705089040961,-156.01967901,0.0002811,2]
[311423822,1705089040970,-500.0,0.00028132,2]
[311423823,1705089040979,-1088.07387574,0.00028132,2]
[311423824,1705089040997,-85.63612426,0.00028132,2]
[311423825,1705089041007,-1378.91,0.00028132,2]
[311423826,1705089041018,-500.0,0.00028132,2]
[311423827,1705089041027,-53.10529427,0.00028132,2]
[311423828,1705089041040,-416.91907348,0.00028132,2]
[311423829,1705089041049,-500.0,0.00028132,2]
[311423830,1705089041059,-500.0,0.00028132,2]
[311423831,1705089041069,-833.33,0.00028133,2]
[311423833,1705089041078,-500.0,0.00028133,2]
[311423835,1705089041087,-194.27209474,0.00028159,2]
[311423836,1705089041096,-194.27209474,0.00028175,2]
[311423838,1705089041105,-500.0,0.00028199,2]
[311423839,1705089041114,-500.0,0.00028199,2]
[311423840,1705089041123,-500.0,0.00028199,2]
[311423841,1705089041132,-157.5038137,0.00028199,2]
[311423842,1705089041142,-600.97778314,0.00028199,2]
[311423843,1705089041151,-500.0,0.00028199,2]
[311423845,1705089041160,-239.49793582,0.00028199,2]
[311423847,1705089041170,-500.0,0.00028199,2]
[311423848,1705089041180,-17355.0,0.000282,2]
[311423850,1705089041189,-155.03101598,0.00028217,10]
[311423852,1705089041200,-500.0,0.00028219,2]
[311423854,1705089041208,-194.27209474,0.00028264,2]
[311423855,1705089041218,-500.0,0.00028356,2]
[311423856,1705089041228,-194.27209474,0.00028384,2]
[311423857,1705089041237,-2005.80220475,0.000284,2]
[311423858,1705089041246,-500.0,0.00028406,2]
[311423859,1705089041255,-1173.71,0.00028406,2]
[311423860,1705089041265,-1378.91,0.00028406,2]
[311423861,1705089041275,-257.74,0.00028406,2]
[311423862,1705089041284,-500.0,0.00028406,2]
[311423863,1705089041294,-500.0,0.00028406,2]
[311423864,1705089041304,-833.33,0.00028407,2]
[311423865,1705089041313,-500.0,0.00028407,2]
[311423866,1705089041322,-194.27209474,0.00028457,2]
[311423867,1705089041332,-200.31408391,0.00028473,2]
[311423868,1705089041342,-500.0,0.00028473,2]
[311423869,1705089041352,-500.0,0.00028473,2]
[311423870,1705089041362,-500.0,0.00028473,2]
[311423871,1705089041371,-500.0,0.00028473,2]
[311423872,1705089041381,-179.774384,0.00028479,2]
[311423873,1705089041390,-3542.62,0.00028483,3]
[311423874,1705089041400,-500.0,0.00028493,2]
[311423875,1705089041409,-155.10702385,0.00028498,2]
[311423876,1705089041419,-50000.0,0.000285,2]
[311423877,1705089041429,-160.61660185,0.00028542,2]
[311423878,1705089041438,-194.27209474,0.00028552,2]
[311423879,1705089041448,-55254.06508361,0.000286,2]
[311424336,1705090233268,-155.0,0.00024578,4]
[311424337,1705090233278,-117.08291796,0.00024579,2]
[311424338,1705090233324,-1976.67895032,0.00024579,2]
[311424339,1705090233333,-5955.31381507,0.0002458,2]
[311424340,1705090233345,-166.666666,0.0002518,2]
[311424341,1705090233356,-12329.7003233,0.00025583,2]
[311424342,1705090233365,-687.86118875,0.000257,2]
[311424343,1705090233374,-166.666666,0.00025867,2]
[311424344,1705090233383,-207.9126971,0.00026027,2]
[311424345,1705090233392,-161.4313671,0.00026033,2]
[311424346,1705090233401,-166.666666,0.00026553,2]
[311424347,1705090233411,-460.75992736,0.00027239,2]
[311424348,1705090233420,-166.666666,0.0002724,2]
[311424349,1705090233429,-1311.12728029,0.000273,4]
[311424350,1705090233439,-2502.46,0.00027301,3]
[311424351,1705090233448,-3603.55,0.00027302,3]
[311424352,1705090233457,-521.0,0.00027309,2]
[311424353,1705090233467,-156.64731392,0.00027309,2]
[311424354,1705090233476,-500.0,0.00027311,2]
[311424355,1705090233485,-500.0,0.00027311,2]
[311424357,1705090233494,-500.0,0.00027311,2]
[311424358,1705090233504,-500.0,0.00027311,2]
[311424360,1705090233513,-500.0,0.00027311,2]
[311424361,1705090233523,-500.0,0.00027311,2]
[311424362,1705090233533,-500.0,0.00027311,2]
[311424363,1705090233542,-458.50637181,0.00027311,2]
[311424364,1705090233552,-500.0,0.00027311,2]
[311424365,1705090233562,-156.70765642,0.00027311,2]
[311424366,1705090233572,-500.0,0.00027311,2]
[311424367,1705090233581,-500.0,0.00027311,2]
[311424368,1705090233591,-500.0,0.00027311,2]
[311424369,1705090233602,-442.19069985,0.00027311,2]
[311424370,1705090233613,-4712.57883465,0.00027311,2]
[311424371,1705090233624,-2918.68572533,0.00027311,2]
[311424372,1705090233637,-6794.08380299,0.00027311,2]
[311424373,1705090233647,-168.54559736,0.00027311,2]
[311424374,1705090233659,-540.95,0.00027311,2]
[311424375,1705090233670,-500.0,0.00027311,2]
[311424376,1705090233681,-500.0,0.00027311,2]
[311424377,1705090233691,-500.0,0.00027311,2]
[311424378,1705090233702,-500.0,0.00027311,2]
[311424379,1705090233712,-161.8286803,0.00027311,2]
[311424380,1705090233722,-500.0,0.00027311,2]
[311424381,1705090233732,-500.0,0.00027311,2]
[311424382,1705090233741,-500.0,0.00027311,2]
[311424383,1705090233751,-500.0,0.00027311,2]
[311424384,1705090233760,-500.0,0.00027311,2]
[311424385,1705090233770,-502.2899914,0.00027311,2]
[311424386,1705090233779,-227.76444057,0.00027311,2]
[311424387,1705090233789,-500.0,0.00027311,2]
[311424388,1705090233798,-500.0,0.00027311,2]
[311424389,1705090233807,-1224.51,0.00027311,2]
[311424390,1705090233818,-500.0,0.00027311,2]
[311424391,1705090233827,-500.0,0.00027311,2]
[311424392,1705090233838,-1273.89,0.00027311,2]
[311424393,1705090233848,-500.0,0.00027311,2]
[311424394,1705090233859,-467.60220917,0.00027311,2]
[311424395,1705090234008,-878.34013724,0.00027312,2]
[311424396,1705090234019,-500.0,0.00027312,2]
[311424397,1705090234028,-157.66665322,0.00027312,2]
[311424398,1705090234037,-500.0,0.00027312,2]
[311424399,1705090234046,-500.0,0.00027312,2]
[311424400,1705090234056,-609.52637741,0.00027312,2]
[311424401,1705090234065,-500.0,0.00027312,2]
[311424402,1705090234074,-502.61811935,0.00027312,2]
[311424403,1705090234084,-399.62867393,0.00027312,2]
[311424404,1705090234093,-500.0,0.00027312,2]
[311424405,1705090234102,-500.0,0.00027312,2]
[311424406,1705090234111,-221.32032128,0.00027312,2]
[311424407,1705090234120,-500.0,0.00027312,2]
[311424408,1705090234129,-504.46218806,0.00027312,2]
[311424409,1705090234138,-500.0,0.00027312,2]
[311424410,1705090234147,-500.0,0.00027312,2]
[311424411,1705090234156,-500.0,0.00027312,2]
[311424412,1705090234165,-500.0,0.00027312,2]
[311424413,1705090234175,-407.75411898,0.00027312,2]
[311424414,1705090234184,-500.0,0.00027312,2]
[311424415,1705090234193,-500.0,0.00027312,2]
[311424416,1705090234202,-729.16,0.00027312,2]
[311424417,1705090234211,-500.0,0.00027312,2]
[311424419,1705090234220,-170.14017987,0.00027312,2]
[311424420,1705090234231,-500.0,0.00027312,2]
[311424421,1705090234240,-500.0,0.00027312,2]
[311424422,1705090234251,-500.0,0.00027312,2]
[311424423,1705090234260,-500.0,0.00027312,2]
[311424424,1705090234269,-500.0,0.00027312,2]
[311424426,1705090234278,-500.0,0.00027312,2]
[311424427,1705090234287,-503.34416239,0.00027312,2]
[311424428,1705090234296,-500.0,0.00027312,2]
[311424429,1705090234306,-1000.0,0.00027312,5]
[311424430,1705090234315,-500.0,0.00027312,2]
[311424431,1705090234324,-500.0,0.00027312,2]
[311424432,1705090234333,-500.0,0.00027312,2]
[311424433,1705090234342,-500.0,0.00027312,2]
[311424434,1705090234351,-500.0,0.00027312,2]
[311424435,1705090234360,-500.0,0.00027312,2]
[311424436,1705090234369,-500.0,0.00027312,2]
[311424437,1705090234378,-500.0,0.00027312,2]
[311424438,1705090234388,-500.0,0.00027312,2]
[311424439,1705090234397,-500.0,0.00027312,2]
[311424440,1705090234406,-648.0035613,0.00027312,2]
[311424441,1705090234416,-500.0,0.00027312,2]
[311424442,1705090234425,-500.0,0.00027312,2]
[311424443,1705090234434,-500.0,0.00027312,2]
[311424444,1705090234445,-500.0,0.00027312,2]
[311424445,1705090234454,-500.0,0.00027312,2]
[311424446,1705090234464,-500.0,0.00027312,2]
[311424447,1705090234476,-245.30792768,0.00027312,2]
[311424448,1705090234485,-500.0,0.00027312,2]
[311424449,1705090234494,-500.0,0.00027312,2]
[311424450,1705090234506,-500.0,0.00027312,2]
[311424451,1705090234515,-500.0,0.00027312,2]
[311424452,1705090234525,-502.88239032,0.00027312,2]
[311424453,1705090234535,-500.0,0.00027312,2]
[311424454,1705090234545,-500.0,0.00027312,2]
[311424455,1705090234554,-500.0,0.00027312,2]
[311424456,1705090234563,-500.0,0.00027312,2]
[311424457,1705090234573,-36410.39936929,0.00027313,2]
[311424458,1705090234582,-5000.0,0.00027313,2]
[311424459,1705090234592,-9946.27151691,0.00027313,2]
[311424460,1705090234601,-17380.85839614,0.00027313,2]
[311424461,1705090234611,-2781.88774588,0.00027343,2]
[311424462,1705090234621,-155.0,0.00027397,2]
[311424463,1705090234631,-500.0,0.00027397,2]
[311424464,1705090234640,-4917.8600325,0.000274,2]
[311424465,1705090234648,-200.0,0.000274,4]
[311424466,1705090234658,-500.0,0.00027534,2]
[311424467,1705090234667,-500.0,0.00027584,2]
[311424468,1705090234676,-500.0,0.00027584,2]
[311424469,1705090234686,-500.0,0.00027584,2]
[311424470,1705090234695,-500.0,0.00027584,2]
[311424471,1705090234704,-500.0,0.00027584,2]
[311424472,1705090234716,-500.0,0.00027584,2]
[311424473,1705090234728,-265.0895561,0.00027584,2]
[311424474,1705090234738,-500.0,0.00027584,2]
[311424475,1705090234747,-500.0,0.00027584,2]
[311424476,1705090234756,-500.0,0.00027584,2]
[311424477,1705090234766,-500.0,0.00027585,2]
[311424478,1705090234775,-500.0,0.00027585,2]
[311424479,1705090234784,-500.0,0.00027585,2]
[311424480,1705090234793,-500.0,0.00027585,2]
[311424481,1705090234802,-635.53581168,0.00027585,2]
[311424482,1705090234819,-500.0,0.00027585,2]
[311424483,1705090234832,-630.83112956,0.00027585,2]
[311424484,1705090234841,-1224.51,0.00027585,2]
[311424485,1705090234851,-500.0,0.00027585,2]
[311424486,1705090234861,-500.0,0.00027585,2]
[311424487,1705090234870,-1273.89,0.00027585,2]
[311424488,1705090234880,-500.0,0.00027586,2]
[311424489,1705090234890,-366.4580534,0.00027586,2]
[311424490,1705090234899,-500.0,0.00027586,2]
[311424491,1705090234909,-500.0,0.00027586,2]
[311424492,1705090234919,-500.0,0.00027586,2]
[311424493,1705090234928,-528.6586103,0.00027586,2]
[311424494,1705090234938,-283.42872033,0.00027586,2]
[311424495,1705090234947,-500.0,0.00027586,2]
[311424496,1705090234957,-729.16,0.00027586,2]
[311424497,1705090234966,-500.0,0.00027586,2]
[311424498,1705090234978,-500.0,0.00027586,2]
[311424499,1705090234987,-503.86688486,0.00027586,2]
[311424500,1705090234997,-500.0,0.00027586,2]
[311424501,1705090235009,-520.31821242,0.00027586,2]
[311424502,1705090235019,-500.0,0.00027586,2]
[311424503,1705090235029,-500.0,0.00027586,2]
[311424504,1705090235039,-500.0,0.00027586,2]
[311424505,1705090235049,-500.0,0.00027586,2]
[311424506,1705090235058,-500.0,0.00027586,2]
[311424507,1705090235068,-500.0,0.00027586,2]
[311424508,1705090235078,-500.0,0.00027586,2]
[311424509,1705090235088,-500.0,0.00027586,2]
[311424510,1705090235097,-500.0,0.00027586,2]
[311424511,1705090235107,-500.0,0.00027586,2]
[311424512,1705090235117,-500.0,0.00027586,2]
[311424513,1705090235126,-500.0,0.00027586,2]
[311424514,1705090235135,-500.0,0.00027586,2]
[311424515,1705090235145,-544.934238,0.00027586,2]
[311424516,1705090235154,-500.0,0.00027671,2]
[311424517,1705090235164,-500.0,0.00027808,2]
[311424518,1705090235174,-500.0,0.00027858,2]
[311424519,1705090235183,-360.20144975,0.00027858,2]
[311424520,1705090235192,-500.0,0.00027858,2]
[311424521,1705090235202,-500.0,0.00027858,2]
[311424522,1705090235211,-500.0,0.00027859,2]
[311424523,1705090235221,-219.41306917,0.00027859,2]
[311424524,1705090235231,-500.0,0.00027859,2]
[311424525,1705090235240,-1224.51,0.00027859,2]
[311424526,1705090235250,-500.0,0.00027859,2]
[311424527,1705090235262,-1273.89,0.00027859,2]
[311424528,1705090235272,-500.0,0.0002786,2]
[311424529,1705090235282,-327.28842134,0.0002786,2]
[311424530,1705090235292,-729.16,0.0002786,2]
[311424531,1705090235302,-346.47463783,0.0002786,2]
[311424532,1705090235311,-500.0,0.0002786,2]
[311424533,1705090235321,-500.0,0.0002786,2]
[311424534,1705090235331,-500.0,0.0002786,2]
[311424535,1705090235342,-500.0,0.0002786,2]
[311424536,1705090235352,-500.0,0.0002786,2]
[311424537,1705090235362,-500.0,0.0002786,2]
[311424538,1705090235372,-152.00860279,0.00027872,2]
[311424539,1705090235382,-166.666666,0.00027926,2]
[311424540,1705090235392,-500.0,0.00027945,2]
[311424541,1705090235402,-1194.12289066,0.00027988,2]
[311424542,1705090235411,-973.39849881,0.00027989,2]
[311424543,1705090235421,-17155.36229771,0.0002799,7]
[311424544,1705090235431,-300.0,0.0002799,2]
[311424545,1705090235440,-544.934238,0.0002799,2]
[311424546,1705090235449,-152.64236015,0.00028068,2]
[311424547,1705090235458,-289.35684568,0.00028082,2]
[311424548,1705090235468,-152.64236015,0.00028102,2]
[311424549,1705090235481,-500.0,0.00028131,2]
[311424550,1705090235491,-329.27294652,0.00028131,2]
[311424551,1705090235501,-500.0,0.00028131,2]
[311424552,1705090235511,-500.0,0.00028131,2]
[311424553,1705090235521,-500.0,0.00028132,2]
[311424554,1705090235531,-500.0,0.00028132,2]
[311424555,1705090235541,-500.0,0.00028132,2]
[311424556,1705090235551,-500.0,0.00028132,2]
[311424557,1705090235561,-1000.0,0.00028132,2]
[311424558,1705090235571,-504.20120448,0.00028132,2]
[311424559,1705090235581,-500.0,0.00028132,2]
[311424560,1705090235591,-500.0,0.00028132,2]
[311424561,1705090235601,-500.0,0.00028132,2]
[311424562,1705090235611,-500.0,0.00028132,2]
[311424563,1705090235621,-500.0,0.00028132,2]
[311424564,1705090235632,-500.0,0.00028132,2]
[311424565,1705090235642,-636.93,0.00028133,2]
[311424566,1705090235651,-1224.51,0.00028133,2]